bitfinex/quotes_SOLUSD_20250919
["timestamp","ask_amount","ask_price","bid_price","bid_amount"]
[1758255983484,1e-08,244.67,244.66,32.26432314]
[1758255983659,1e-08,244.67,244.66,32.94432314]
[1758255984164,1e-08,244.67,244.66,34.58034842]
[1758255984367,1e-08,244.67,244.66,38.66765325]
[1758255985493,1e-08,244.67,244.66,52.26324726]
[1758255986584,1e-08,244.67,244.66,20.28324726]
[1758255986880,1e-08,244.67,244.66,52.24324726]
[1758255988477,1e-08,244.67,244.66,20.28324726]
[1758255988678,1e-08,244.67,244.66,52.24324726]
[1758255992364,1e-08,244.68,244.67,13.87991715]
[1758255992582,1e-08,244.68,244.67,14.57991715]
[1758255993182,1e-08,244.68,244.67,16.21594242]
[1758255993573,1e-08,244.68,244.67,20.30308019]
[1758255995794,1e-08,244.7,244.69,39.87991715]
[1758255996091,1e-08,244.7,244.69,71.83991715]
[1758255996276,1e-08,244.7,244.69,72.53991715]
[1758255996973,1e-08,244.7,244.69,74.17587551]
[1758255997173,1e-08,244.7,244.69,78.26267922]
[1758255998694,0.67,244.79,244.73,26.0]
[1758255998890,0.67,244.79,244.74,32.22432314]
[1758255999196,0.1,244.79,244.74,32.22432314]
[1758255999372,0.57,244.78,244.74,32.22432314]
[1758255999572,0.1,244.79,244.74,32.22432314]
[1758255999573,0.57,244.77,244.76,26.0]
[1758255999773,0.1,244.79,244.76,31.94]
[1758255999992,0.57,244.78,244.77,4.08546799]
[1758256000178,0.57,244.78,244.75,4.08580183]
[1758256000366,2.89032754,244.77,244.76,31.94]
[1758256001479,2.89032754,244.77,244.76,36.0256349]
[1758256001670,0.1,244.79,244.76,46.23972216]
[1758256003180,0.1,244.79,244.77,0.98432314]
[1758256003492,0.1,244.79,244.78,32.22432314]
[1758256003822,0.1,244.79,244.78,32.92432314]
[1758256004090,0.1,244.79,244.78,26.98432314]
[1758256004296,0.1,244.79,244.78,58.92432314]
[1758256005081,0.1,244.79,244.78,63.00962422]
[1758256005295,0.1,244.79,244.78,76.60521823]
[1758256010097,0.1,244.79,244.78,44.66521823]
[1758256010274,0.1,244.79,244.78,62.00530108]
[1758256010478,0.67,244.79,244.78,31.92]
[1758256010784,2.99032754,244.79,244.74,4.08582935]
[1758256011102,2.99032754,244.79,244.75,31.92]
[1758256011103,0.57,244.78,244.75,31.92]
[1758256011579,0.57,244.77,244.75,31.92]
[1758256011784,0.1,244.79,244.75,31.92]
[1758256012380,0.1,244.79,244.76,4.0856349]
[1758256012578,0.1,244.79,244.77,31.92]
[1758256012771,0.16,244.79,244.77,31.92]
[1758256013605,0.16,244.79,244.78,4.08530108]
[1758256015102,0.16,244.79,244.78,5.06962422]
[1758256017984,0.16,244.79,244.78,18.66521823]
[1758256019933,0.06,244.82,244.81,26.0]
[1758256020093,0.06,244.82,244.81,58.20432314]
[1758256020408,0.06,244.82,244.81,72.49991715]
[1758256021594,0.06,244.82,244.81,72.47991715]
[1758256021911,0.06,244.82,244.81,76.5647176]
[1758256024916,0.06,244.82,244.81,43.9647176]
[1758256025119,0.06,244.82,244.81,30.08480045]
[1758256025316,0.06,244.82,244.81,61.98480045]
[1758256025817,0.63,244.82,244.81,57.9]
[1758256026011,0.63,244.82,244.81,31.9]
[1758256026323,0.06,244.82,244.81,31.9]
[1758256026490,0.63,244.82,244.81,31.9]
[1758256026807,0.63,244.82,244.81,35.98480045]
[1758256027113,0.06,244.82,244.81,31.9]
[1758256029717,0.63,244.82,244.81,31.9]
[1758256029897,0.63,244.82,244.79,0.28432314]
[1758256030102,0.63,244.82,244.78,14.29855379]
[1758256030103,0.63,244.82,244.8,31.9]
[1758256030414,0.63,244.82,244.78,14.29855379]
[1758256030415,0.63,244.82,244.81,31.9]
[1758256031607,0.06,244.82,244.78,10.21325271]
[1758256031804,0.06,244.82,244.79,31.93]
[1758256032002,0.06,244.82,244.79,0.03]
[1758256032333,0.06,244.82,244.8,31.9]
[1758256032731,0.06,244.82,244.79,0.03]
[1758256032899,0.63,244.82,244.8,31.9]
[1758256033088,0.06,244.82,244.8,35.98483949]
[1758256033813,0.57,244.81,244.79,0.03]
[1758256034018,0.57,244.81,244.8,31.9]
[1758256035514,0.06,244.82,244.8,31.9]
[1758256035697,0.06,244.82,244.8,35.98481935]
[1758256036617,0.57,244.81,244.79,0.03]
[1758256036821,5.62777644,244.82,244.8,31.88]
[1758256037119,5.62777644,244.82,244.79,0.03]
[1758256037314,4.14464938,244.82,244.79,0.03]
[1758256037515,0.57,244.81,244.79,0.03]
[1758256037910,0.57,244.8,244.79,0.03]
[1758256040726,1.48312706,244.81,244.79,0.03]
[1758256040899,0.57,244.8,244.79,0.03]
[1758256041423,2.05312706,244.81,244.79,0.03]
[1758256042812,0.57,244.8,244.79,0.03]
[1758256043016,0.57,244.81,244.79,0.03]
[1758256043717,0.57,244.8,244.79,0.03]
[1758256045026,6.13809438,244.8,244.79,0.03]
[1758256045234,2.05312706,244.8,244.79,0.03]
[1758256045533,1.48312706,244.81,244.79,0.03]
[1758256046022,5.56795043,244.81,244.79,0.03]
[1758256046619,0.57,244.8,244.79,0.03]
[1758256047010,1.48312706,244.81,244.79,0.03]
[1758256047216,2.05312706,244.81,244.79,0.03]
[1758256047522,6.13794415,244.81,244.79,0.03]
[1758256047726,0.06,244.82,244.79,0.03]
[1758256047923,2.05312706,244.81,244.79,0.03]
[1758256048122,0.57,244.81,244.79,0.03]
[1758256048327,1.48312706,244.81,244.79,0.03]
[1758256048631,2.05312706,244.81,244.79,0.03]
[1758256049127,1.48312706,244.8,244.79,0.03]
[1758256049311,2.05312706,244.8,244.79,0.03]
[1758256051032,1.48312706,244.8,244.79,0.03]
[1758256052626,5.56809438,244.8,244.79,0.03]
[1758256053132,6.13809438,244.8,244.79,0.03]
[1758256053435,5.56809438,244.8,244.79,0.03]
[1758256054116,1.48312706,244.8,244.79,0.03]
[1758256054712,5.56809438,244.8,244.79,0.03]
[1758256054933,7.62122144,244.8,244.79,0.03]
[1758256055123,9.75322152,244.8,244.79,0.03]
[1758256059315,4.18512714,244.8,244.79,0.03]
[1758256059515,36.04512714,244.8,244.79,0.03]
[1758256059722,40.13009446,244.8,244.79,0.03]
[1758256060545,8.27009446,244.8,244.79,0.03]
[1758256060823,36.04512714,244.8,244.79,0.03]
[1758256061029,40.13009446,244.8,244.79,0.03]
[1758256064237,6.7869674,244.8,244.79,0.03]
[1758256064421,40.13009446,244.8,244.79,0.03]
[1758256064617,8.27009446,244.8,244.79,0.03]
[1758256064817,40.13009446,244.8,244.79,0.03]
[1758256065340,41.61322152,244.8,244.79,0.03]
[1758256066521,46.0626027,244.8,244.79,0.03]
[1758256066929,59.65819671,244.8,244.79,0.03]
[1758256067835,52.52688455,244.8,244.79,0.03]
[1758256068053,59.94251985,244.8,244.79,0.03]
[1758256068844,20.66688455,244.8,244.79,0.03]
[1758256069058,41.40763538,244.8,244.79,0.03]
[1758256069226,13.6326027,244.8,244.79,0.03]
[1758256069425,2.13200008,244.8,244.79,0.69]
[1758256069947,2.19200008,244.8,244.79,0.69]
[1758256070747,3.67512714,244.8,244.79,0.03]
[1758256070942,7.76009446,244.8,244.79,0.03]
[1758256072343,9.24322152,244.8,244.79,0.03]
[1758256074452,27.85819671,244.8,244.79,0.03]
[1758256074954,27.28819671,244.8,244.79,0.03]
[1758256075257,53.08790728,244.8,244.79,0.03]
[1758256076560,45.67227198,244.8,244.79,0.03]
[1758256076732,53.08790728,244.8,244.79,0.03]
[1758256078959,27.42171065,244.8,244.79,0.72]
[1758256079161,28.90483771,244.8,244.79,0.72]
[1758256079330,27.42171065,244.8,244.79,0.72]
[1758256079531,59.26171065,244.8,244.79,0.72]
[1758256079735,27.42171065,244.8,244.79,0.72]
[1758256082954,27.42171065,244.8,244.79,4.80513419]
[1758256086648,27.42171065,244.8,244.79,0.72]
[1758256087350,27.42171065,244.8,244.79,4.80513419]
[1758256098272,27.42171065,244.8,244.79,31.08945733]
[1758256099052,0.06,244.8,244.79,31.08945733]
[1758256099365,0.06,244.8,244.79,43.35563335]
[1758256102158,1e-08,244.8,244.79,56.95122736]
[1758256102470,0.06,244.83,244.82,26.28432314]
[1758256102861,0.06,244.83,244.82,26.97432314]
[1758256103262,0.06,244.83,244.82,28.60954584]
[1758256104077,0.06,244.83,244.82,64.49417944]
[1758256106877,0.06,244.83,244.82,32.69417944]
[1758256107080,0.06,244.83,244.82,64.49417944]
[1758256107468,0.06,244.83,244.82,31.7198563]
[1758256107665,0.06,244.83,244.79,0.74]
[1758256107980,0.06,244.83,244.81,31.8]
[1758256108360,0.06,244.83,244.81,32.51]
[1758256109171,0.06,244.83,244.81,36.59464727]
[1758256109564,0.06,244.83,244.81,35.88464727]
[1758256110269,0.06,244.83,244.81,4.08464727]
[1758256110472,0.06,244.83,244.82,31.78]
[1758256110862,0.06,244.83,244.82,35.8646336]
[1758256112764,0.06,244.83,244.82,31.78]
[1758256112970,0.06,244.83,244.8,4.08496732]
[1758256113175,0.06,244.83,244.81,31.78]
[1758256115186,0.06,244.83,244.81,35.8646544]
[1758256115391,0.06,244.83,244.81,36.5746544]
[1758256115883,0.06,244.83,244.82,0.71]
[1758256117582,0.06,244.83,244.82,4.7946336]
[1758256118877,0.06,244.83,244.82,5.07895674]
[1758256119187,0.06,244.83,244.82,6.71424629]
[1758256123076,0.06,244.83,244.82,6.74424629]
[1758256125376,1e-08,244.83,244.82,6.74424629]
[1758256125687,0.06,244.85,244.84,0.28432314]
[1758256125984,0.06,244.85,244.84,32.04432314]
[1758256126188,0.06,244.85,244.84,32.75432314]
[1758256126388,0.06,244.85,244.84,34.38941215]
[1758256126774,0.06,244.85,244.84,38.4737121]
[1758256129704,1e-08,244.86,244.84,52.06930611]
[1758256129882,1e-08,244.86,244.85,72.34991715]
[1758256130607,1e-08,244.86,244.85,73.98480567]
[1758256131798,1e-08,244.86,244.85,78.06893881]
[1758256133493,1e-08,244.86,244.85,32.7133448]
[1758256133697,1e-08,244.86,244.85,64.4733448]
[1758256134187,1e-08,244.86,244.85,32.7133448]
[1758256134393,1e-08,244.86,244.85,64.4733448]
[1758256135380,1e-08,244.86,244.85,32.7133448]
[1758256135707,1e-08,244.86,244.85,64.4533448]
[1758256136187,1e-08,244.86,244.85,32.7133448]
[1758256136394,1e-08,244.86,244.85,64.4533448]
[1758256140215,1e-08,244.86,244.85,32.0033448]
[1758256140515,1e-08,244.86,244.85,63.45902166]
[1758256141805,1e-08,244.86,244.85,31.71902166]
[1758256141985,1e-08,244.86,244.85,63.45902166]
[1758256143080,1e-08,244.86,244.85,64.13902166]
[1758256147202,1e-08,244.86,244.85,63.45902166]
[1758256148506,1e-08,244.86,244.85,64.13902166]
[1758256148809,1e-08,244.86,244.85,31.71902166]
[1758256148990,1e-08,244.86,244.85,61.82413314]
[1758256152101,1e-08,244.86,244.85,62.50413314]
[1758256152698,1e-08,244.86,244.85,61.82413314]
[1758256154108,1e-08,244.86,244.85,62.50413314]
[1758256154729,1e-08,244.86,244.85,61.82413314]
[1758256155014,1e-08,244.86,244.85,62.50413314]
[1758256159911,1e-08,244.86,244.85,76.38405029]
[1758256160106,1e-08,244.88,244.86,0.28432314]
[1758256160312,1e-08,244.88,244.87,32.68432314]
[1758256161027,1e-08,244.88,244.87,34.44432314]
[1758256161326,1e-08,244.88,244.87,41.8348708]
[1758256163612,1e-08,244.88,244.87,54.09729575]
[1758256164511,1e-08,244.88,244.87,67.69288976]
[1758256165319,1e-08,244.88,244.87,35.97288976]
[1758256165524,1e-08,244.88,244.87,67.69288976]
[1758256168922,1e-08,244.88,244.87,35.97288976]
[1758256169127,1e-08,244.88,244.87,67.67288976]
[1758256169623,1e-08,244.88,244.87,50.09054765]
[1758256169825,1e-08,244.88,244.87,18.39054765]
[1758256170020,0.57000001,244.88,244.87,5.84379956]
[1758256170208,0.57000001,244.88,244.87,35.78379956]
[1758256170611,0.57000001,244.88,244.87,4.08379956]
[1758256170811,0.57000001,244.88,244.87,35.78379956]
[1758256174246,1e-08,244.88,244.87,35.78379956]
[1758256176136,0.57000001,244.88,244.85,4.11413314]
[1758256176429,1e-08,244.88,244.87,26.0]
[1758256176652,1e-08,244.88,244.86,31.7]
[1758256177016,0.57,244.87,244.86,31.7]
[1758256177417,0.57,244.87,244.85,0.03]
[1758256177620,0.57,244.87,244.86,31.7]
[1758256178638,0.57,244.87,244.85,0.03]
[1758256178831,0.57,244.87,244.86,31.7]
[1758256180011,1e-08,244.88,244.86,31.7]
[1758256180240,1e-08,244.88,244.86,32.36]
[1758256180621,1e-08,244.88,244.87,4.08379956]
[1758256182325,0.57000001,244.88,244.87,31.7]
[1758256182932,1e-08,244.88,244.87,31.7]
[1758256184340,1e-08,244.88,244.87,35.78379956]
[1758256185149,1e-08,244.88,244.87,36.44379956]
[1758256190922,1e-08,244.88,244.87,38.20379956]
[1758256192131,1e-08,244.88,244.87,52.08371671]
[1758256194335,1e-08,244.89,244.88,13.87991715]
[1758256194530,1e-08,244.9,244.88,14.53991715]
[1758256194736,1e-08,244.9,244.89,45.93559401]
[1758256195137,1e-08,244.9,244.89,57.53575462]
[1758256195349,1e-08,244.9,244.89,58.22575462]
[1758256196555,1e-08,244.9,244.89,62.30922066]
[1758256197435,1e-08,244.9,244.89,62.5935438]
[1758256197636,1e-08,244.9,244.89,30.9135438]
[1758256197836,1e-08,244.9,244.89,62.5935438]
[1758256200648,1e-08,244.9,244.89,30.9135438]
[1758256201372,1e-08,244.9,244.89,62.5935438]
[1758256201574,1e-08,244.9,244.89,12.26016061]
[1758256201775,0.57000001,244.9,244.89,12.26016061]
[1758256201957,1e-08,244.9,244.89,43.94016061]
[1758256202272,1e-08,244.9,244.89,31.68]
[1758256202446,0.57000001,244.9,244.85,31.74925516]
[1758256202641,0.57000001,244.9,244.88,26.0]
[1758256202869,0.57,244.89,244.85,0.03]
[1758256203057,1e-08,244.9,244.86,31.66]
[1758256203262,0.57000001,244.9,244.86,31.66]
[1758256204276,1e-08,244.9,244.86,4.08396634]
[1758256204462,0.57000001,244.9,244.87,31.66]
[1758256204779,0.57,244.89,244.87,31.66]
[1758256205144,0.57,244.89,244.86,4.08396634]
[1758256205354,0.57,244.88,244.85,0.03]
[1758256205563,1e-08,244.9,244.87,31.66]
[1758256206167,1.48210073,244.9,244.85,0.03]
[1758256206347,2.05210072,244.89,244.86,31.66]
[1758256206555,2.05210072,244.88,244.85,31.69]
[1758256206868,0.57,244.87,244.85,31.69]
[1758256207073,0.57,244.86,244.85,31.69]
[1758256208797,0.57,244.86,244.85,0.03]
[1758256209168,0.57,244.88,244.85,0.03]
[1758256209688,0.57,244.87,244.85,0.03]
[1758256210192,0.57,244.87,244.85,35.77407892]
[1758256210489,2.05210072,244.89,244.85,0.03]
[1758256210694,0.57,244.88,244.85,31.69]
[1758256210897,0.57,244.87,244.85,31.69]
[1758256211100,1.48210072,244.89,244.85,0.03]
[1758256211101,2.05210072,244.86,244.85,0.03]
[1758256212782,6.13606706,244.86,244.85,0.03]
[1758256214086,4.65396634,244.86,244.85,0.03]
[1758256214294,6.13606706,244.86,244.85,0.03]
[1758256215390,32.13606706,244.86,244.85,0.03]
[1758256218500,4.08361455,244.89,244.85,0.03]
[1758256218791,1.48210072,244.87,244.85,0.03]
[1758256218979,1.48210072,244.86,244.85,0.03]
[1758256219792,2.31735391,244.86,244.85,0.03]
[1758256220396,2.88735391,244.86,244.85,0.03]
[1758256221985,6.97132025,244.86,244.85,0.03]
[1758256222187,4.65396634,244.86,244.85,0.03]
[1758256222387,6.97132025,244.86,244.85,0.03]
[1758256222774,6.40132025,244.86,244.85,0.03]
[1758256226386,0.06000001,244.9,244.85,0.7]
[1758256228483,0.06000001,244.9,244.86,4.08396634]
[1758256228691,0.06000001,244.9,244.87,0.67]
[1758256228990,2.37735392,244.9,244.85,0.03]
[1758256229195,2.31735391,244.89,244.86,0.67]
[1758256230881,4.14333166,244.9,244.87,0.67]
[1758256231085,2.31735391,244.89,244.87,0.67]
[1758256233100,2.31735391,244.88,244.87,0.67]
[1758256233304,2.31735391,244.89,244.87,0.67]
[1758256233599,0.06000001,244.9,244.85,4.11410198]
[1758256233600,0.06000001,244.9,244.88,0.67]
[1758256234899,0.06000001,244.9,244.88,4.75354103]
[1758256235403,0.06000001,244.9,244.89,0.67]
[1758256237100,0.06000001,244.9,244.86,4.08380692]
[1758256237288,0.06000001,244.9,244.87,0.67]
[1758256237611,2.37735392,244.9,244.87,0.67]
[1758256238113,2.31735391,244.88,244.85,0.03]
[1758256238315,2.31735391,244.88,244.85,0.7]
[1758256238487,2.31735391,244.88,244.86,0.67]
[1758256238688,2.31735391,244.87,244.86,0.67]
[1758256238985,2.31735391,244.87,244.85,0.03]
[1758256239199,2.31735391,244.87,244.85,0.7]
[1758256239591,2.31735391,244.87,244.86,0.67]
[1758256242287,6.40116858,244.87,244.85,0.03]
[1758256242509,2.31735391,244.86,244.85,0.03]
[1758256245326,6.40132025,244.86,244.85,0.03]
[1758256245886,6.97132025,244.86,244.85,0.03]
[1758256246282,20.56691426,244.86,244.85,0.03]
[1758256247012,4.08376062,244.88,244.85,0.03]
[1758256247225,2.31735391,244.86,244.85,0.03]
[1758256248281,2.31735391,244.86,244.85,0.7]
[1758256248486,2.31735391,244.89,244.85,0.7]
[1758256249712,2.31735391,244.88,244.85,0.7]
[1758256250044,2.31735391,244.88,244.86,0.67]
[1758256250906,0.06000001,244.9,244.85,0.03]
[1758256250907,2.31735391,244.87,244.85,0.03]
[1758256251089,2.31735391,244.89,244.85,0.03]
[1758256251090,2.31735391,244.86,244.85,0.03]
[1758256251819,2.88735391,244.86,244.85,0.03]
[1758256252626,0.57,244.86,244.85,0.03]
[1758256252927,38.61132025,244.86,244.85,0.03]
[1758256253109,52.20691426,244.86,244.85,0.03]
[1758256254227,4.08377675,244.88,244.85,0.03]
[1758256254535,2.31735391,244.86,244.85,0.03]
[1758256254905,6.40132025,244.86,244.85,0.03]
[1758256256198,4.08396634,244.86,244.85,0.03]
[1758256256411,6.97132025,244.86,244.85,0.03]
[1758256257214,6.40132025,244.86,244.85,0.03]
[1758256257733,6.97132025,244.86,244.85,0.03]
[1758256257908,20.56691426,244.86,244.85,0.03]
[1758256258617,6.40132025,244.86,244.85,0.03]
[1758256260309,20.56691426,244.86,244.85,0.03]
[1758256260844,19.99691426,244.86,244.85,0.03]
[1758256263516,25.24531411,244.86,244.85,0.03]
[1758256263935,5.24839985,244.86,244.85,0.75]
[1758256265532,7.56575376,244.86,244.85,0.03]
[1758256266132,11.6497201,244.86,244.85,0.03]
[1758256267616,43.2897201,244.86,244.85,0.03]
[1758256268133,57.45531411,244.86,244.85,0.03]
[1758256268737,59.0914063,244.86,244.85,0.03]
[1758256269244,59.0914063,244.86,244.82,0.03]
[1758256269245,61.55092178,244.86,244.82,0.03]
[1758256269427,0.28432314,244.82,244.8,0.03]
[1758256269630,51.63774837,244.81,244.8,0.03]
[1758256269834,56.73875655,244.81,244.8,0.03]
[1758256270139,90.01518341,244.81,244.8,0.03]
[1758256270524,90.01518341,244.81,244.77,0.03]
[1758256270525,13.87991715,244.8,244.77,0.03]
[1758256270726,41.91294792,244.78,244.77,0.03]
[1758256270935,73.55294792,244.78,244.77,0.03]
[1758256271250,107.97944896,244.78,244.77,0.03]
[1758256271636,22.31576982,244.77,244.71,0.1]
[1758256272028,57.01246923,244.77,244.71,0.1]
[1758256272238,54.69511532,244.77,244.71,0.1]
[1758256274650,56.33174305,244.77,244.71,0.1]
[1758256275524,55.76174305,244.77,244.71,0.1]
[1758256275947,56.33174305,244.77,244.71,0.1]
[1758256277238,55.76174305,244.77,244.71,0.1]
[1758256278030,42.16614904,244.77,244.74,0.75]
[1758256278334,85.08438914,244.77,244.74,0.75]
[1758256278533,87.40174305,244.77,244.74,0.75]
[1758256279042,85.76511532,244.77,244.74,0.03]
[1758256281735,85.76511532,244.77,244.76,0.75]
[1758256281736,35.6714325,244.77,244.76,0.75]
[1758256282141,67.3114325,244.77,244.76,0.75]
[1758256283451,53.3524945,244.77,244.76,0.03]
[1758256283654,85.27681764,244.77,244.76,0.03]
[1758256284351,39.59559401,244.75,244.74,0.03]
[1758256284548,80.60164082,244.75,244.74,0.03]
[1758256284754,108.81124114,244.75,244.74,0.03]
[1758256286245,36.09091404,244.75,244.74,0.03]
[1758256286446,69.21564713,244.75,244.74,0.71]
[1758256286647,67.73091404,244.75,244.74,0.71]
[1758256286845,69.21564713,244.75,244.74,0.71]
[1758256287040,67.73091404,244.75,244.74,0.71]
[1758256287245,36.09091404,244.75,244.74,0.71]
[1758256287650,28.20960032,244.75,244.74,0.71]
[1758256290984,28.20960032,244.75,244.74,26.99432314]
[1758256291142,2.49049854,244.75,244.74,14.58991715]
[1758256291462,0.06,244.77,244.76,26.28432314]
[1758256291967,0.06,244.77,244.76,26.96432314]
[1758256293043,0.06,244.77,244.76,0.96432314]
[1758256295341,0.06,244.77,244.76,26.96432314]
[1758256295546,0.06,244.77,244.76,0.96432314]
[1758256296246,1e-08,244.77,244.76,46.17991715]
[1758256296647,1e-08,244.77,244.76,47.81534042]
[1758256301051,1e-08,244.77,244.76,16.19534042]
[1758256301266,1e-08,244.77,244.76,47.81534042]
[1758256305052,1e-08,244.77,244.76,58.58432314]
[1758256305249,1e-08,244.77,244.76,57.62]
[1758256305852,1e-08,244.77,244.76,57.76216157]
[1758256306052,1e-08,244.77,244.76,31.62]
[1758256306466,1e-08,244.77,244.76,57.62]
[1758256306852,1e-08,244.77,244.76,31.62]
[1758256307369,0.67000001,244.77,244.75,31.62]
[1758256307954,0.67000001,244.77,244.74,4.11596878]
[1758256308155,0.67,244.76,244.74,4.11596878]
[1758256308561,0.67,244.76,244.74,35.73596878]
[1758256308763,0.67,244.76,244.74,4.11596878]
[1758256309062,0.67,244.76,244.74,35.73596878]
[1758256309260,0.67,244.75,244.74,31.65]
[1758256309458,0.67,244.75,244.74,0.03]
[1758256309873,2.15473309,244.75,244.74,0.03]
[1758256310662,6.28653326,244.75,244.74,0.03]
[1758256311460,10.37233509,244.75,244.74,0.03]
[1758256311972,4.13180017,244.75,244.74,0.03]
[1758256313556,4.80180017,244.75,244.74,0.03]
[1758256313776,6.28653326,244.75,244.74,0.03]
[1758256315078,4.80180017,244.75,244.74,0.03]
[1758256315382,6.28653326,244.75,244.74,0.03]
[1758256319158,5.61653326,244.75,244.74,0.03]
[1758256319978,4.13180017,244.75,244.74,0.03]
[1758256320186,4.13180017,244.75,244.74,0.71]
[1758256320795,4.13180017,244.75,244.74,32.61432314]
[1758256320964,4.13180017,244.75,244.74,36.70029192]
[1758256321897,1e-08,244.77,244.74,36.70029192]
[1758256321898,1e-08,244.77,244.76,39.87991715]
[1758256322266,1e-08,244.77,244.76,40.55991715]
[1758256322895,1e-08,244.77,244.76,44.64555205]
[1758256323467,1e-08,244.77,244.76,31.04995804]
[1758256323681,1e-08,244.77,244.76,62.66995804]
[1758256324712,1e-08,244.77,244.76,31.04995804]
[1758256324995,1e-08,244.77,244.76,61.7056349]
[1758256325297,1e-08,244.77,244.76,62.3856349]
[1758256326074,1e-08,244.77,244.76,61.7056349]
[1758256326273,1e-08,244.77,244.76,62.3856349]
[1758256326892,1e-08,244.77,244.76,30.7656349]
[1758256327065,1e-08,244.77,244.76,62.66995804]
[1758256328299,1e-08,244.77,244.76,30.36995804]
[1758256328480,1e-08,244.77,244.76,62.64995804]
[1758256329584,1e-08,244.77,244.76,76.24555205]
[1758256329804,1e-08,244.8,244.77,13.87991715]
[1758256330091,0.06000001,244.9,244.84,0.28432314]
[1758256330292,0.06000001,244.9,244.88,26.0]
[1758256330483,0.06000001,244.9,244.89,32.28]
[1758256330897,0.06000001,244.9,244.89,32.56432314]
[1758256331095,0.06000001,244.9,244.89,36.64778918]
[1758256331999,0.06000001,244.9,244.89,61.96778918]
[1758256332296,0.06000001,244.9,244.89,62.64778918]
[1758256334496,0.06000001,244.9,244.89,31.04778918]
[1758256334679,0.06000001,244.9,244.89,62.64778918]
[1758256337087,0.06000001,244.9,244.89,31.04778918]
[1758256337286,0.06000001,244.9,244.89,62.64778918]
[1758256342113,0.06000001,244.9,244.89,76.24338319]
[1758256342318,0.06,244.93,244.9,13.59559401]
[1758256342493,0.06,244.93,244.92,26.28432314]
[1758256342683,0.06,244.93,244.92,57.86432314]
[1758256342888,0.06,244.93,244.92,58.54432314]
[1758256343896,0.06,244.93,244.92,62.627289]
[1758256345118,1e-08,244.93,244.92,62.627289]
[1758256345302,1e-08,244.93,244.92,76.22288301]
[1758256345617,1e-08,244.93,244.92,88.48003812]
[1758256346532,0.06,244.95,244.93,13.87991715]
[1758256346533,1e-08,244.95,244.93,13.87991715]
[1758256346722,1e-08,244.95,244.94,45.45991715]
[1758256347026,1e-08,244.95,244.94,46.14991715]
[1758256347406,1e-08,244.95,244.94,50.23254963]
[1758256348312,1e-08,244.95,244.94,18.65254963]
[1758256348524,1e-08,244.95,244.94,50.23254963]
[1758256348891,1e-08,244.95,244.94,18.65254963]
[1758256349121,1e-08,244.95,244.94,50.23254963]
[1758256350423,1e-08,244.95,244.94,20.28663669]
[1758256350820,1e-08,244.95,244.94,51.86663669]
[1758256351415,1e-08,244.95,244.94,20.28663669]
[1758256351612,1e-08,244.95,244.94,51.86663669]
[1758256352906,0.1,244.99,244.98,39.59559401]
[1758256353113,0.1,244.99,244.98,71.45991715]
[1758256354333,0.06,245.0,244.99,0.28432314]
[1758256354620,0.06,245.0,244.99,45.45991715]
[1758256354798,0.06,245.0,244.99,13.87991715]
[1758256354997,0.06,245.0,244.99,45.45991715]
[1758256355919,0.06,245.0,244.99,49.5417164]
[1758256358926,0.1,245.02,245.01,13.87991715]
[1758256359110,0.1,245.02,245.01,39.87991715]
[1758256359319,0.1,245.02,245.01,45.43991715]
[1758256359524,0.1,245.02,245.01,46.12991715]
[1758256360108,0.1,245.02,245.01,50.21138321]
[1758256360520,1e-08,245.02,245.01,50.21138321]